Cogmind - Beta 17 @@@ ROGUE MODE // 2026.07.08 @ 14:19:02 Player: flowerfeast Result: Destroyed by D-53 Grenadier with Mini Grenade Launcher Performance ------------- Evolutions (0) 0 Regions Visited (4) 800 Robots Destroyed (19) 95 Value Destroyed (462) 462 Prototype IDs (23) 460 Alien Tech Used (0) 0 Bonus (300) 300 TOTAL SCORE: 2117 Bonus ------- Aligned with FarCom 300 Cogmind --------- Core Integrity 0/250 Matter 299/300 Energy 246/250 System Corruption 2% Temperature Cool (2) Movement Walking (190) Ox1 Location -9/Mines Parts ------- > --- POWER (1) -------- Ion Engine > --- PROPULSION (2) --- Aluminum Leg Aluminum Leg > --- UTILITY (2) ------ Large Storage Unit Structural Scanner > --- WEAPON (2) ------- Minigun Longsword +1 > --- INVENTORY (15) --- Light Nuclear Core Aluminum Leg Aluminum Leg Wheel Large Storage Unit Seismic Detector Reflective Plating System Shield Assault Cannon Peak State ------------ > --- POWER ------------ Ion Engine > --- PROPULSION ------- Aluminum Leg Aluminum Leg > --- UTILITY ---------- Small Storage Unit Structural Scanner > --- WEAPON ----------- Minigun Longsword +1 > --- INVENTORY -------- Light Nuclear Core Aluminum Leg Aluminum Leg Wheel Reflective Plating System Shield Particle Gun Assault Cannon [Rating: 17] Favorites ----------- Power Ion Engine Engine Ion Engine Propulsion Aluminum Leg Leg Aluminum Leg Utility Structural Scanner Device Structural Scanner Storage Small Storage Unit Weapon Minigun Energy Gun Particle Gun Ballistic Gun Minigun Ballistic Cannon Assault Cannon Slashing Weapon Longsword +1 Build | -11 -10 -10 -10 -9 ------- Run | Yrd Mat Min Exi Min Slots Evolved . | . . . . . Power . | . . . . . Propulsion . | . . . . . Utility . | . . . . . Weapon . | . . . . . Parts Attached 22 | 8 . 10 2 2 Power 2 | 1 . 1 . . Engine 2 | 1 . 1 . . Core . | . . . . . Reactor . | . . . . . Propulsion 7 | 2 . 3 . 2 Treads . | . . . . . Leg 7 | 2 . 3 . 2 Wheel . | . . . . . Hover . | . . . . . Flight . | . . . . . Utility 5 | 2 . 2 1 . Device 3 | 1 . 2 . . Storage 2 | 1 . . 1 . Processor . | . . . . . Hackware . | . . . . . Protection . | . . . . . Artifact . | . . . . . Weapon 8 | 3 . 4 1 . Energy Gun 4 | 2 . 2 . . Energy Cannon . | . . . . . Ballistic Gun 2 | 1 . 1 . . Ballistic Cannon 1 | . . 1 . . Launcher . | . . . . . Special Weapon . | . . . . . Impact Weapon . | . . . . . Slashing Weapon 1 | . . . 1 . Piercing Weapon . | . . . . . Special Melee Weapon . | . . . . . Unidentified Prototypes . | . . . . . Parts Lost 5 | . . 5 . . Power 1 | . . 1 . . Propulsion 2 | . . 2 . . Utility 1 | . . 1 . . Weapon 1 | . . 1 . . Highest Loss Streak 5 | . . 5 . . To Critical Strikes . | . . . . . Average Backups 7 | 2 5 7 8 8 Power 1 | . 1 1 1 1 Propulsion 2 | . 1 2 2 2 Utility 2 | . 1 2 3 4 Weapon 1 | . 1 1 1 1 Tool/Special . | . . . . . Unused Backups 9 | . . 2 . 7 Power 2 | . . 1 . 1 Propulsion 4 | . . 1 . 3 Utility 3 | . . . . 3 Weapon . | . . . . . Tool/Special . | . . . . . Average Slot Usage (%) 98 | . 100 96 100 100 Engine 13 | . 14 12 14 14 Leg 27 | . 28 27 28 28 Device 13 | . 14 12 14 14 Storage 14 | . 14 14 14 14 Energy Gun 5 | . 14 13 . . Ballistic Gun 12 | . 14 9 14 14 Ballistic Cannon 3 | . . 5 3 . Slashing Weapon 6 | . . . 10 14 Peak Build Rating 17 | 9 10 12 17 17 Average Rating 12 | 5 9 10 15 17 On Entrance 9 | . 9 10 12 17 Avg Prop Armor Cover (%) . | . . . . . Naked Turns . | . . . . . Heaviest Build 32 | 14 14 19 32 32 Greatest Support 20 | 20 20 20 20 20 Greatest Overweight (x) 1 | . . 1 1 1 Average Overweight (x) . | . . . . 1 Largest Inventory Capacity 15 | 8 8 8 15 15 Average Capacity 10 | 7 8 8 11 15 Most Carried 9 | 5 8 8 9 9 Average Carried 7 | 2 5 7 8 8 Final Capacity 15 | 8 8 8 15 15 Final Carried 9 | 4 8 8 9 9 Class Distribution -------------------- 88% | Mutant 11% | Scavenger-Mutant Dominant Class ---------------- Mutant | -10/Materials Mutant | -10/Mines Mutant | -10/Exiles Mutant | -9/Mines Resources | -11 -10 -10 -10 -9 ----------- Run | Yrd Mat Min Exi Min Matter Collected 569 | 249 43 190 . 87 Remotely . | . . . . . Salvage Created 524 | 56 96 285 . 87 Parts 40 | 10 5 23 . 2 Haulers Intercepted . | . . . . . Recyclers Shooed . | . . . . . Parts Field Recycled . | . . . . . Retrieved Matter . | . . . . . Parts Self-Destructed . | . . . . . Prevented . | . . . . . Parts Restored . | . . . . . Kills | -11 -10 -10 -10 -9 ------- Run | Yrd Mat Min Exi Min Combat Hostiles Destroyed 16 | . 2 12 . 2 Melee 2 | . . . . 2 Guns 10 | . 2 8 . . Cannons 3 | . . 3 . . AOE 1 | . . 1 . . Classes Destroyed 3 | 1 1 1 . . Tunneler 3 | 3 . . . . Swarmer 7 | . . 7 . . Grunt 9 | . 2 5 . 2 Best Kill Streak 3 | 2 2 3 . 2 Combat Bots Only 3 | . 2 3 . 2 Max Kills in Single Turn 1 | 1 1 1 . 1 Gunslinging . | . . . . . Exploded 1 | . . 1 . . Melee 1 | . . . . 1 Uniques/NPCs Destroyed . | . . . . . Combat | -11 -10 -10 -10 -9 -------- Run | Yrd Mat Min Exi Min Hostile Shots Fired 96 | . 4 75 . 17 Missed 18 | . 1 13 . 4 Hits 78 | . 3 62 . 13 Projectile 78 | . 3 62 . 13 AOE 2 | . . . . 2 Critical Strikes 3 | . . 3 . . Damage Taken 941 | . 37 705 . 199 Core 251 | . . 202 . 49 Absorbed by Shields . | . . . . . Core Remaining (%) 100 | 100 . . . . Volleys Fired 46 | 8 4 32 . 2 Largest 2 | 2 2 2 . 1 Hottest 105 | 60 60 105 . 25 Shots Fired 88 | 16 8 62 . 2 Gun 77 | 16 8 51 . 2 Cannon 11 | . . 11 . . Launcher . | . . . . . Special . | . . . . . Kinetic 54 | 8 4 40 . 2 Thermal 17 | . . 17 . . Explosive . | . . . . . Electromagnetic 17 | 8 4 5 . . Robot Hit Streak 7 | 2 6 7 . 7 Robot Miss Streak 6 | 1 1 6 . 1 Penetration Max . | . . . . . Secondary Targets 3 | . . 3 . . Max Gunslinging Chain 1 | . . 1 . . Shots Hit Robots 55 | 8 6 34 . 7 Core Hits 32 | 3 4 22 . 3 Critical Kills . | . . . . . Critical Parts Destroyed . | . . . . . Critical Strikes 2 | . 1 1 . . Corrupt 2 | . 1 1 . . Melee Attacks 6 | . . . . 6 Impact . | . . . . . Slashing 6 | . . . . 6 Piercing . | . . . . . Sneak Attacks . | . . . . . Combat Hostiles . | . . . . . Follow-up Attacks . | . . . . . Damage Inflicted 962 | 88 72 534 . 268 Guns 554 | 88 72 375 . 19 Cannons 125 | . . 125 . . Explosions 32 | . . 32 . . Melee 249 | . . . . 249 Ramming 2 | . . 2 . . Kinetic 366 | 25 15 307 . 19 Thermal 177 | . . 177 . . Explosive . | . . . . . Electromagnetic 168 | 63 57 48 . . Impact . | . . . . . Slashing 249 | . . . . 249 Piercing . | . . . . . Highest Corruption 2 | . 1 2 2 2 Average Corruption 1 | . 1 1 2 2 Corruption Purged . | . . . . . Corruption Blocked . | . . . . . Effects 15 | . . 4 10 1 Message Errors 2 | . . . 2 . Matter Fused 4 | . . . 3 1 Heat Flow Errors 5 | . . 2 3 . Energy Discharges 1 | . . . 1 . Data Loss (minor) 2 | . . 2 . . Data Loss (major) 1 | . . . 1 . Overload Shots . | . . . . . Overflow Damage 12 | . . 12 . . Projectiles 12 | . . 12 . . Explosions . | . . . . . Melee . | . . . . . Knockbacks . | . . . . . Impact . | . . . . . Kinetic . | . . . . . Secondary . | . . . . . Self-Inflicted Damage 45 | . . 45 . . Shots 1 | . . 1 . . Rammed . | . . . . . Targets Rammed 3 | . . 3 . . Kicked 3 | . . 3 . . Crushed . | . . . . . Highest Temperature 498 | 40 29 498 266 14 Average Temperature 115 | 19 16 140 110 9 Received Heat Transfer 360 | . 21 246 . 93 Effects 1 | . . 1 . . Damage (major) 1 | . . 1 . . Siege Activations . | . . . . . Martial Activations . | . . . . . Shielding Activations . | . . . . . Robots Disrupted . | . . . . . Combat Hostiles . | . . . . . Robots Corrupted . | . . . . . Combat Hostiles . | . . . . . Parts Fried . | . . . . . Impact Corruptions . | . . . . . Robots Melted . | . . . . . Combat Hostiles . | . . . . . Parts Melted 1 | . . 1 . . Heat Transferred 383 | . . 383 . . Parts Sabotaged . | . . . . . Parts Stolen . | . . . . . Parts Stripped . | . . . . . Power Chain Reactions 1 | . . 1 . . Alert | -11 -10 -10 -10 -9 ------- Run | Yrd Mat Min Exi Min Maximum Alert Level . | . . . . . Low Security (%) 100 | 100 100 100 . 100 Level 1 . | . . . . . Level 2 . | . . . . . Level 3 . | . . . . . Level 4 . | . . . . . Level 5 . | . . . . . High Security . | . . . . . Max Security . | . . . . . Peak Influence 122 | 10 40 122 . 50 Initial 7 | . . 7 . . Average 46 | 1 14 70 . 23 Influence Increases 459 | 15 50 344 . 50 Destroy 0b10 Robot/C 320 | . 40 240 . 40 Destroy 0b10 Robot/NC 15 | 15 . . . . Destroy Leader 70 | . 10 50 . 10 Destroy Structure 9 | . . 9 . . Lose Combat Pursuer 45 | . . 45 . . Influence Decreases 449 | 15 30 293 71 40 Entered New Map 84 | . . 13 71 . Time Decay 315 | 15 30 230 . 40 Lost Part 50 | . . 50 . . Squads Dispatched 2 | . 2 . . . Investigation 1 | . 1 . . . Extermination . | . . . . . Reinforcement 1 | . 1 . . . Assault . | . . . . . Garrison . | . . . . . Intercept . | . . . . . Searches Triggered . | . . . . . Construction Impeded . | . . . . . Haulers Reinforced . | . . . . . Active Scanning Responses . | . . . . . Cargo Convoy Interrupts . | . . . . . Stealth | -11 -10 -10 -10 -9 --------- Run | Yrd Mat Min Exi Min Distress Signals . | . . . . . Communications Jammed . | . . . . . Distress Signals . | . . . . . Times Spotted 24 | . 5 15 . 4 Peak Tracking Total 5 | . 2 5 . 3 Tactical Retreats 3 | . . 3 . . Traps | -11 -10 -10 -10 -9 ------- Run | Yrd Mat Min Exi Min Traps Triggered . | . . . . . Indirectly . | . . . . . Trap Hack Attempts . | . . . . . Triggered . | . . . . . Disarmed . | . . . . . Reprogrammed . | . . . . . Reused . | . . . . . Traps Extracted . | . . . . . Installed . | . . . . . Triggered . | . . . . . Machines | -11 -10 -10 -10 -9 ---------- Run | Yrd Mat Min Exi Min Machines Disabled . | . . . . . Max in Single Turn . | . . . . . Machines Repaired . | . . . . . Machines Dismantled . | . . . . . Machines Sabotaged . | . . . . . Overloaded Fab Kills . | . . . . . Hacking | -11 -10 -10 -10 -9 --------- Run | Yrd Mat Min Exi Min Machines Accessed 7 | . 1 1 5 . Terminals 1 | . 1 . . . Fabricators . | . . . . . Repair Stations . | . . . . . Recycling Units . | . . . . . Scanalyzers . | . . . . . Garrison Access . | . . . . . Total Hacks 32 | . 3 1 28 . Successful 29 | . . 1 28 . Failed 3 | . 3 . . . Catastrophic 1 | . 1 . . . Database Lockouts . | . . . . . Manual 5 | . 3 . 2 . Terminals 3 | . 3 . . . Fabricators . | . . . . . Repair Stations . | . . . . . Recycling Units . | . . . . . Scanalyzers . | . . . . . Garrison Access . | . . . . . Terminal Hacks 29 | . . 1 28 . Record 27 | . . . 27 . Open Door 1 | . . 1 . . Proto ID Catalog 1 | . . . 1 . Fabricator Hacks . | . . . . . Repair Station Hacks . | . . . . . Recycling Unit Hacks . | . . . . . Scanalyzer . | . . . . . Garrison Access Hacks . | . . . . . Unauthorized Hacks . | . . . . . Terminals . | . . . . . Fabricators . | . . . . . Repair Stations . | . . . . . Recycling Units . | . . . . . Scanalyzers . | . . . . . Garrison Access . | . . . . . Data Cores Recovered . | . . . . . Used . | . . . . . Hacking Detections 1 | . 1 . . . Full Trace Events 1 | . 1 . . . Feedback Events 1 | . 1 . . . Corruption 1 | . 1 . . . Feedback Blocked . | . . . . . Robot Schematics Acquired . | . . . . . Robots Built . | . . . . . Authchips . | . . . . . Time . | . . . . . Total Robot Build Rating . | . . . . . Part Schematics Acquired . | . . . . . Parts Built . | . . . . . Authchips . | . . . . . Time . | . . . . . Total Part Build Rating . | . . . . . Part Studies Acquired . | . . . . . Parts Repaired . | . . . . . Time . | . . . . . Parts Recycled . | . . . . . Recycled Matter . | . . . . . Retrieved Matter . | . . . . . Retrieved Components . | . . . . . Parts Scanalyzed . | . . . . . Part Schematics Acquired . | . . . . . Parts Damaged . | . . . . . Bothacking | -11 -10 -10 -10 -9 ------------ Run | Yrd Mat Min Exi Min Used RIF Installer . | . . . . . Robots Hacked . | . . . . . Non-combat . | . . . . . Combat . | . . . . . Robot Hacks Applied . | . . . . . Relay Couplers Released . | . . . . . Fabnet Peak Effective % . | . . . . . Robots Rewired . | . . . . . Allies Hacked . | . . . . . Hacks Repelled . | . . . . . Allies | -11 -10 -10 -10 -9 -------- Run | Yrd Mat Min Exi Min Total Allies . | . . . . . Largest Group . | . . . . . Highest-Rated Group . | . . . . . Highest-Rated Ally . | . . . . . Total Orders . | . . . . . Ally Attacks . | . . . . . Total Damage . | . . . . . Kills . | . . . . . Allies Corrupted . | . . . . . Allies Melted . | . . . . . Intel | -11 -10 -10 -10 -9 ------- Run | Yrd Mat Min Exi Min Active Infowar (turns) 1467 | 2 103 443 804 115 Terrain 215 | 2 103 110 . . Structural 1251 | . . 332 804 115 Seismic 1 | . . 1 . . Robot Analysis Total . | . . . . . Derelict Logs Recovered . | . . . . . Drone Launches . | . . . . . Drone Recoveries . | . . . . . Exploration | -11 -10 -10 -10 -9 ------------- Run | Yrd Mat Min Exi Min Turns Passed 1630 | 121 103 487 804 115 Spaces Moved 1011 | 72 68 285 536 50 Core 9 | 9 . . . . Treads . | . . . . . Legs 1002 | 63 68 285 536 50 Wheels . | . . . . . Hover . | . . . . . Flight . | . . . . . Fastest Speed 50 | 50 120 120 120 190 Average Speed 138 | 111 120 120 148 190 Slowest Speed 190 | 120 120 190 190 190 Overloaded Moves . | . . . . . Propulsion Burnouts . | . . . . . Robots Hopped . | . . . . . Potential Cave-ins . | . . . . . Cave-ins Triggered . | . . . . . Exploration Rate (%) 35 | 5 23 50 86 12 Regions Visited 4 Branch Regions 3 Pre-discovered Areas . | . . . . . Known Exits Taken . | . . . . . Unknown Exits Taken 4 | 1 1 1 1 . Scrap Searched 1 | . . 1 . . Spaces Dug . | . . . . . Terrain Destroyed 9 | . . 9 . . Melee . | . . . . . Projectile 4 | . . 4 . . AOE 5 | . . 5 . . Terrain Rammed . | . . . . . Walls Destroyed . | . . . . . Machines Disabled . | . . . . . Actions | -11 -10 -10 -10 -9 --------- Run | Yrd Mat Min Exi Min Total 1162 | 98 82 372 546 64 Wait 32 | . 7 25 . . Move 1007 | 71 67 284 535 50 Hop . | . . . . . Pick Up 33 | 11 4 11 5 2 Fast Attach . | . . . . . Attach 12 | 7 . 5 . . Detach . | . . . . . Swap 11 | 1 . 6 2 2 Drop 12 | . . 6 4 2 Fire 46 | 8 4 32 . 2 Melee 6 | . . . . 6 Ram . | . . . . . Kick 3 | . . 3 . . Crush . | . . . . . Escape Stasis . | . . . . . Rewire . | . . . . . Trap . | . . . . . Miscellaneous . | . . . . . Route ------- -11/Scrapyard -10/Materials -10/Mines (discovered 4 exits: [*Mat x2] / *Exi / [Sub]) -10/Exiles (discovered 2 exits: [*Min x2]) -9/Mines History --------- Turn | Location | Event 4 | -11/Scrapyard | Discovered new exit (range 15) 122 | -11/Scrapyard | Entered Materials 219 | -10/Materials | Discovered new exit (range 5) 225 | -10/Materials | Entered Mines 270 | -10/Mines | Discovered new exit (range 8) 315 | -10/Mines | Build established: Mutant 346 | -10/Mines | Core integrity fell below 50% 386 | -10/Mines | Lost 5 parts (1p2n1u1w) 508 | -10/Mines | Discovered new exit (range 9) 509 | -10/Mines | Met a Derelict who couldn't figure out how to use a Trap Extractor 597 | -10/Mines | Discovered new exit (range 11) 663 | -10/Mines | Core integrity fell below 20% 684 | -10/Mines | Discovered new exit (range 6) 712 | -10/Mines | Entered Exiles 730 | -10/Exiles | Discovered new exit (range 15) 760 | -10/Exiles | Met 8R-AWN 781 | -10/Exiles | Met EX-HEX 820 | -10/Exiles | Met EX-BIN 841 | -10/Exiles | Aligned with FarCom system 842 | -10/Exiles | Given EX-Vault access code 871 | -10/Exiles | Opened EX-Vault 876 | -10/Exiles | Found Prototype Slashing Weapon 917 | -10/Exiles | Identified Longsword +1 972 | -10/Exiles | Warned to stay clear of 0b10 Research branches 1012 | -10/Exiles | Met EX-DEC 1159 | -10/Exiles | Discovered new exit (range 10) 1291 | -10/Exiles | Visited The Gauntlet 1516 | -10/Exiles | Left Exiles lab with Longsword +1 1516 | -10/Exiles | Entered Mines 1598 | -9/Mines | Assembled infested the area 1603 | -9/Mines | Assisted by a Guerilla fighting off Assembled 1631 | -9/Mines | Destroyed by D-53 Grenadier with Mini Grenade Launcher Last Messages --------------- 01516_ Receiving FarCom transmissions... 01538_ G-47 Trooper destroyed. 01545_ G-34 Mercenary destroyed. 01547_ Acquired 41 matter. 01552_ Dropped Aluminum Leg. 01555_ Acquired Aluminum Leg. 01564_ System corrupted: Matter fused (-6). 01564_ Acquired Aluminum Leg. 01565_ Acquired 46 matter. 01598_ ALERT: Infestation in the mines, dispatching Demolisher response squad. 01603_ A derelict emerges from the shadows: "You need to get out of here! I've been tracking a group of Assembled to figure out where they're coming from, and they're closing on this area, come on!" 01606_ T-07 Excavator is excavating. 01622_ PH-GO9(h): "I'll hold them off! Go on ahead or try to find another way!" 01623_ T-07 Excavator is excavating. 01630_ HV Slug penetrates Wall. 01631_ D-53 Grenadier unfolds itself. Map ----- +----------------------------------------------------+ | ?????????????????????????????????????????????????? | | ?????????????????????????????????????????????????? | | ?????????????????????????????????????????????????? | | ?????????????????????????????????????????????????? | | ?????????????????????????????????????????????????? | | ?????????????????????????????????????????????????? | | ?????????????????????????????????????????????????? | | ?????????????????????????????????????????????????? | | ?????????????????????????????????????????????????? | | ?????????????????????????????????????????????????? | | ?????????????????????????????????????????????????? | | ?????????????????????????????????????????????????? | | ?????????????????????????????????????????????????? | | ?????????????????????????????????????????????????? | | ?????????????????????????????????????????????????? | | ?????????????????????????????????????????????????? | | ?????????????????????????????????????????????????? | | ?????????????????????????????????????????????????? | | ?????????????????????????????????????????????????? | | ????????????????????????????####?????????????????? | | ???????????????????????#########????###??????????? | | ???????????###########?### ## ### ?? ##??????????? | | ???????????## ########### ### ##??????????? | | ???????????## t ##### ; ###?????????? | | ???????????### h s #"?????????? | | ????????????## ## # @ $ d= %????????? | | ????????????##### ###### ### ?d????????????? | | ???????????????## ####### ### ####??????????????? | | ???????????????## ##??###########????????????????? | | ???????????????## ##?????????????????????????????? | | ???????????????## ##?????????????????????????????? | | ?################ ##?????????????????????????????? | | ?################ ##?????????????????????????????? | | ?## ### ##?????????????????????????????? | | ?## ### ##?????????????????????????????? | | ?## """ """ ### ##?????????????????????????????? | | ?## """ """ ### ##?????????????????????????????? | | ?## """ """ ### ##?????????????????????????????? | | ?## ##?????????????????????????????? | | ?## ######?????????????????????????????? | | ?## == ######?????????????????????????????? | | ?## ##?????????????????????????????????? | | ?## ##?????????????????????????????????? | | ?###############?????????????????????????????????? | | ?###############?????????????????????????????????? | | ?????????????????????????????????????????????????? | | ?????????????????????????????????????????????????? | | ?????????????????????????????????????????????????? | | ?????????????????????????????????????????????????? | | ?????????????????????????????????????????????????? | +----------------------------------------------------+ Best States ------------- Heat Dissipation 25 Energy Generation 10 Energy Capacity 250 Matter Stores 300 Matter Capacity 300 Sight Range 16 Terrain Scan Range 16 Terrain Scan Density 10 Evasion (%) 55 Item Schematics ----------------- None Robot Schematics ------------------ None Fabricated ------------ Nothing Repaired ---------- Nothing Studied --------- None Alien Tech Used ----------------- None Achievements -------------- Sixth Sense Challenges ------------ None Game ------ Seed IntegrityRecyclingDisplacer Manual? 0 Play Time 00:18:23 Cumulative 7.1 hours Start 2026.07.08 @ 13:59:44 End 2026.07.08 @ 14:19:02 Sessions 1 Manual Loads 0 Difficulty Rogue Special Mode None Game No. 13 Rogue 12 Adventurer 1 Explorer 0 Win Type - Total 0 Types 0/0/0/0/0/0/0/0/0/0 Lore% 7 Gallery% 12 Achievement% 11 Wizard Run 0 Options --------- Layout 0 ASCII 0 Keyboard 0 Movement Mouse Keybinds 0 Fullscreen 2 Font 18/SmallcapsGlow Map View 38x25 Zoom Use 99% Tactical HUD 1 Map Filters NONE Filters NONE Steam 1 RUN: e633ae2b-5228-401d-935d-456d1c1c266e